Cogmind - Beta 16 @@@ ROGUE MODE // 2025.12.02 @ 19:28:17 Player: GGOBC-006 Result: Destroyed by LY-ED1(z) with Makeshift Axe Performance ------------- Evolutions (4) 2000 Regions Visited (9) 1800 Robots Destroyed (126) 630 Value Destroyed (3962) 3962 Prototype IDs (32) 640 Alien Tech Used (1) 200 Bonus (1335) 1335 TOTAL SCORE: 10567 Bonus ------- High Alert Combat Kills 163 Follower Combat Kills 123 Registered with UFD 300 Met Optimus in HQ 500 Met Imprinter 300 Friendly Fire -51 Cogmind --------- Core Integrity 0/850 Matter 244/300 Energy 88/100 System Corruption 46% Temperature Cool (0) Movement Hovering (60) Location -6/Zion Parts ------- > --- POWER (3) -------- (None) > --- PROPULSION (6) --- Gravmag System > --- UTILITY (5) ------ Launcher Guidance Computer > --- WEAPON (2) ------- (None) > --- INVENTORY (5) ---- Makeshift Leg Improved Sensor Array Phasing AFG Self-destruct Interrupter (50) Peak State ------------ > --- POWER ------------ Light Nuclear Core Fission Core > --- PROPULSION ------- Armored Huge Wheel Armored Huge Wheel > --- UTILITY ---------- Launcher Guidance Computer Launcher Loader Improved Light Armor Plating Phasing AFG > --- WEAPON ----------- Hypervelocity Gauss Rifle Heavy Shock Bomb Launcher > --- INVENTORY -------- Improved Sensor Array Makeshift Light Armor Plating Mass Driver Missile Launcher Self-destruct Interrupter [Rating: 67] Favorites ----------- Power Meta Core Engine Ion Engine Power Core Meta Core Propulsion Armored Huge Wheel Leg VSS Leg Wheel Armored Huge Wheel Hover Unit Improved Gravmag System Flight Unit VTOL Module Utility Improved Sensor Array Device Improved Sensor Array Storage Light Humpback Processor Launcher Guidance Computer Hackware Hacking Suite Protection Light Armor Plating Weapon Subdweller Shrapnel Launcher Energy Gun Makeshift Laser Ballistic Gun Hypervelocity Gauss Rifle Ballistic Cannon Mass Driver Launcher Subdweller Shrapnel Launcher Special Weapon Mining Laser Piercing Weapon CR-A16's Pointy Stick Special Melee Weapon Dirty Datajack Build | -11 -10 -10 -10 -8 -8 -6 -6 -6 -6 ------- Run | Yrd Mat Min Sub Rec Scr Fac Low Low Zio Slots Evolved 8 | . . . . . . 8 . . . Power 2 | . . . . . . 2 . . . Propulsion 3 | . . . . . . 3 . . . Utility 3 | . . . . . . 3 . . . Weapon . | . . . . . . . . . . Parts Attached 89 | 9 3 5 15 9 3 23 4 8 10 Power 15 | 1 . 1 3 . 1 4 1 3 1 Engine 7 | 1 . 1 1 . 1 2 . . 1 Core 8 | . . . 2 . . 2 1 3 . Reactor . | . . . . . . . . . . Propulsion 23 | 2 1 2 1 4 . 8 . . 5 Treads . | . . . . . . . . . . Leg 6 | . . . . 2 . . . . 4 Wheel 10 | 2 1 2 1 2 . 2 . . . Hover 6 | . . . . . . 5 . . 1 Flight 1 | . . . . . . 1 . . . Utility 30 | 4 1 2 5 3 2 5 3 3 2 Device 15 | 4 . 1 1 . . 4 2 1 2 Storage 1 | . . . 1 . . . . . . Processor 3 | . . . 1 . 1 . . 1 . Hackware 1 | . . . . 1 . . . . . Protection 10 | . 1 1 2 2 1 1 1 1 . Artifact . | . . . . . . . . . . Weapon 21 | 2 1 . 6 2 . 6 . 2 2 Energy Gun 2 | . . . 1 . . 1 . . . Energy Cannon . | . . . . . . . . . . Ballistic Gun 4 | 2 . . 1 . . 1 . . . Ballistic Cannon 2 | . . . . 1 . . . 1 . Launcher 10 | . 1 . 2 1 . 4 . 1 1 Special Weapon 1 | . . . 1 . . . . . . Impact Weapon . | . . . . . . . . . . Slashing Weapon . | . . . . . . . . . . Piercing Weapon 1 | . . . . . . . . . 1 Special Melee Weapon 1 | . . . 1 . . . . . . Unidentified Prototypes 5 | . . 1 . . . 1 . 1 2 Corrupted Parts 5 | . . . . . . . . 1 4 System Corruption 47 | . . . . . . . . 7 40 Parts Lost 45 | . . . 8 4 3 11 1 5 13 Power 12 | . . . 1 . 1 3 1 3 3 Propulsion 12 | . . . 2 1 1 3 . 1 4 Utility 7 | . . . 3 1 . 1 . . 2 Weapon 14 | . . . 2 2 1 4 . 1 4 Highest Loss Streak 7 | . . . 6 4 3 5 1 4 7 To Critical Strikes . | . . . . . . . . . . Average Backups 4 | 2 4 5 4 5 5 4 4 4 3 Power . | . 1 1 . 1 1 . . . . Propulsion . | . . . . . . . . . . Utility 1 | . 1 2 1 1 1 . 1 2 2 Weapon 2 | . 1 2 2 3 3 3 3 2 1 Tool/Special . | . . . . . . . . . . Unused Backups 6 | . 2 1 1 . . . 1 . 1 Power 1 | . . 1 . . . . . . . Propulsion 1 | . . . . . . . . . 1 Utility 1 | . 1 . . . . . . . . Weapon 3 | . 1 . 1 . . . 1 . . Tool/Special . | . . . . . . . . . . Average Slot Usage (%) 74 | . 100 100 75 78 86 63 72 60 55 Engine 1 | . 14 14 . . . 1 . . . Core 9 | . . . 10 11 11 6 12 8 10 Leg 1 | . . . . 10 . . . . 1 Wheel 17 | . 28 28 19 9 24 6 13 12 10 Device 8 | . 27 14 5 . . 19 20 15 9 Processor 2 | . . . . . 3 4 . 4 6 Hackware 2 | . . . . 7 8 . . . . Protection 7 | . . 14 7 11 12 6 6 4 5 Ballistic Gun 6 | . 26 28 9 3 . . 6 5 5 Launcher 14 | . 1 . 20 20 24 9 6 5 5 Peak Build Rating 67 | 11 9 15 35 30 31 56 64 65 67 Average Rating 34 | 6 8 7 26 27 26 42 60 55 51 On Entrance 27 | . 9 7 8 26 25 22 56 62 56 Avg Prop Armor Cover (%) 2 | . . . 1 3 . 3 1 6 . Naked Turns . | . . . . . . . . . . Heaviest Build 65 | 11 13 13 42 42 22 51 47 52 65 Greatest Support 56 | 20 20 20 30 28 28 56 56 56 56 Greatest Overweight (x) 13 | . . . 13 13 1 2 . 1 6 Average Overweight (x) . | . . . 2 . . . . . . Largest Inventory Capacity 25 | 5 5 5 25 5 5 5 5 5 5 Average Capacity 5 | 5 5 5 5 5 5 5 5 5 5 Most Carried 5 | 4 5 5 5 5 5 5 5 5 5 Average Carried 4 | 2 4 4 4 5 4 4 4 4 4 Final Capacity 5 | 5 5 5 5 5 5 5 5 5 5 Final Carried 5 | 3 5 5 5 5 5 4 5 4 4 Class Distribution -------------------- 73% | Mutant 14% | Subdweller-Bomber 8% | Skirmisher Dominant Class ---------------- Mutant | -10/Materials Mutant | -10/Mines Subdweller-Bomber | -10/Subcaves Mutant | -8/Recycling Mutant | -8/Scraptown Mutant | -6/Factory Mutant | -6/Lower Caves Mutant | -6/Lower Caves Mutant | -6/Zion Resources | -11 -10 -10 -10 -8 -8 -6 -6 -6 -6 ----------- Run | Yrd Mat Min Sub Rec Scr Fac Low Low Zio Matter Collected 3439 | 432 116 440 566 277 68 452 449 313 326 Remotely . | . . . . . . . . . . Salvage Created 3785 | 209 179 445 319 371 270 718 288 292 694 Parts 228 | 17 21 31 26 24 15 40 7 18 29 Haulers Intercepted 2 | . . . . 1 . 1 . . . Recyclers Shooed 4 | . . . . . . 4 . . . Parts Field Recycled . | . . . . . . . . . . Retrieved Matter . | . . . . . . . . . . Parts Self-Destructed 33 | . . . 12 . . . 10 11 . Prevented 5 | . . . . . . . . 5 . Parts Restored . | . . . . . . . . . . Kills | -11 -10 -10 -10 -8 -8 -6 -6 -6 -6 ------- Run | Yrd Mat Min Sub Rec Scr Fac Low Low Zio Combat Hostiles Destroyed 92 | . 7 11 9 10 5 19 9 11 11 Guns 19 | . . 11 4 . . . 2 2 . Cannons 2 | . . . . . . . . . 2 AOE 68 | . 7 . 5 10 5 19 7 8 7 Classes Destroyed 24 | 3 4 . 2 5 3 2 1 . 4 Worker 7 | 2 . 1 . 1 . 3 . . . Builder 8 | . 4 . . 1 . 3 . . . Tunneler 6 | 4 . 1 . . . 1 . . . Hauler 2 | . . . . 1 . 1 . . . Recycler 4 | 1 . . . 1 . 2 . . . Drone 2 | . . . . . . 2 . . . Turret 2 | . . . 2 . . . . . . Watcher 4 | . 2 . . . . 2 . . . Swarmer 30 | . 3 3 4 3 . 7 . 10 . Grunt 23 | . 4 8 . . . 5 6 . . Brawler 1 | . . . . 1 . . . . . Duelist 2 | . . . . . . . 2 . . Protector 2 | . . . . 2 . . . . . Sentry 5 | . . . . 2 . 2 1 . . Hunter 4 | . . . . . . 3 . 1 . Programmer 2 | . . . . 2 . . . . . Subdweller 5 | . . . 5 . . . . . . Ranger 1 | . . . . . 1 . . . . Guru 1 | . . . . . 1 . . . . Scrapper 2 | . . . . . 2 . . . . Zionite 3 | . . . . . . . . . 3 Tinkerer 4 | . . . . . . . . . 4 Wasp 1 | . . . . . . . . . 1 Thug 3 | . . . . . 1 . . . 2 Savage 1 | . . . . . . . . . 1 Butcher 2 | . . . . . . . . . 2 Fireman 1 | . . . . . . . . . 1 Mutant 4 | . . . . . . . . . 4 Best Kill Streak 12 | 4 8 4 3 12 5 9 6 6 8 Combat Bots Only 9 | . 4 3 3 9 5 7 6 6 6 Max Kills in Single Turn 10 | 2 6 1 1 10 4 5 2 3 3 Gunslinging . | . . . . . . . . . . Exploded 8 | . 2 . 1 8 4 4 2 3 2 Melee . | . . . . . . . . . . Uniques/NPCs Destroyed . | . . . . . . . . . . Combat | -11 -10 -10 -10 -8 -8 -6 -6 -6 -6 -------- Run | Yrd Mat Min Sub Rec Scr Fac Low Low Zio Hostile Shots Fired 528 | . 10 64 90 8 7 120 14 45 170 Missed 194 | . 6 22 40 2 . 42 10 8 64 Hits 334 | . 4 42 50 6 7 78 4 37 106 Melee 16 | . . . . . . . . . 16 Projectile 318 | . 4 42 50 6 7 78 4 37 90 AOE 1 | . . . 1 . . . . . . Critical Strikes 9 | . . 2 . 1 . 1 1 1 3 Part Disruptions 1 | . . . . . . . . . 1 Damage Taken 5666 | . 68 497 857 223 230 963 146 627 2055 Core 1106 | . 7 106 91 13 25 73 62 59 670 Absorbed by Shields . | . . . . . . . . . . Core Remaining (%) 51 | 100 . . . . 3 . . . . Volleys Fired 295 | 24 14 51 69 4 4 38 22 26 43 Largest 2 | 2 2 2 2 2 1 2 1 1 1 Hottest 100 | 40 40 40 100 80 40 76 36 47 47 Shots Fired 386 | 48 17 102 83 4 4 38 22 26 42 Gun 255 | 48 6 102 50 . . 11 11 12 15 Cannon 24 | . . . . . . . . 6 18 Launcher 93 | . 11 . 19 4 4 27 11 8 9 Special 14 | . . . 14 . . . . . . Kinetic 302 | 48 6 102 67 3 2 12 11 18 33 Thermal 15 | . . . 15 . . . . . . Explosive 56 | . 11 . 1 . . 26 11 3 4 Electromagnetic 13 | . . . . 1 2 . . 5 5 Robot Hit Streak 16 | 5 6 9 16 6 3 8 5 3 9 Robot Miss Streak 7 | 5 1 5 5 1 1 3 5 2 7 Penetration Max 2 | . . . . . . 1 . . 2 Secondary Targets 4 | . . 4 . . . . . . . Max Gunslinging Chain 1 | . . 1 . . . . . . . Shots Hit Robots 192 | 23 10 60 40 3 3 16 7 8 22 Core Hits 243 | 8 19 25 22 23 11 54 30 14 37 Critical Kills 4 | 1 . . . . . 1 1 1 . Critical Parts Destroyed 6 | . . . . . . . 1 1 4 Critical Strikes 12 | 1 . . . . . 1 2 2 6 Destroy 10 | 1 . . . . . 1 2 2 4 Blast 2 | . . . . . . . . . 2 Melee Attacks . | . . . . . . . . . . Impact . | . . . . . . . . . . Slashing . | . . . . . . . . . . Piercing . | . . . . . . . . . . Sneak Attacks . | . . . . . . . . . . Combat Hostiles . | . . . . . . . . . . Follow-up Attacks . | . . . . . . . . . . Damage Inflicted 12105 | 306 679 822 1281 1266 450 3771 979 581 1970 Guns 1727 | 306 36 822 340 . . 71 45 30 77 Cannons 332 | . . . . . . . . . 332 Explosions 10046 | . 643 . 941 1266 450 3700 934 551 1561 Melee . | . . . . . . . . . . Ramming . | . . . . . . . . . . Kinetic 4425 | 306 36 822 1236 1218 107 216 45 30 409 Thermal 1226 | . . . . . 257 944 . . 25 Explosive 5212 | . 643 . 45 . . 2611 934 337 642 Electromagnetic 1242 | . . . . 48 86 . . 214 894 Impact . | . . . . . . . . . . Slashing . | . . . . . . . . . . Piercing . | . . . . . . . . . . Highest Corruption 46 | . . . . 1 . . . 7 46 Average Corruption 5 | . . . . 1 . . . 3 16 Corruption Purged 5 | . . . . . . . . 5 . Corruption Blocked . | . . . . . . . . . . Effects 37 | . . . . 4 . . . 13 20 Message Errors 9 | . . . . 1 . . . 6 2 Matter Fused 8 | . . . . . . . . 3 5 Heat Flow Errors 6 | . . . . 1 . . . 3 2 Energy Discharges 1 | . . . . 1 . . . . . Data Loss (minor) 2 | . . . . . . . . . 2 Data Loss (major) 3 | . . . . . . . . 1 2 Alerts 2 | . . . . . . . . . 2 Misdirections 4 | . . . . . . . . . 4 Weapon Failures 2 | . . . . 1 . . . . 1 Overload Shots . | . . . . . . . . . . Overflow Damage 483 | . . . 20 63 . 299 3 . 98 Projectiles . | . . . . . . . . . . Explosions 483 | . . . 20 63 . 299 3 . 98 Melee . | . . . . . . . . . . Knockbacks . | . . . . . . . . . . Impact . | . . . . . . . . . . Kinetic . | . . . . . . . . . . Secondary . | . . . . . . . . . . Self-Inflicted Damage 827 | . 22 . 38 144 123 112 71 9 308 Shots 28 | . 1 . 2 4 5 4 2 1 9 Rammed . | . . . . . . . . . . Targets Rammed . | . . . . . . . . . . Kicked . | . . . . . . . . . . Crushed . | . . . . . . . . . . Highest Temperature 275 | . 4 31 . 275 57 216 100 271 261 Average Temperature 58 | . 4 10 . 120 41 55 36 90 84 Received Heat Transfer 795 | . 18 282 192 . 57 81 30 . 135 Siege Activations . | . . . . . . . . . . Martial Activations . | . . . . . . . . . . Shielding Activations . | . . . . . . . . . . Robots Disrupted . | . . . . . . . . . . Combat Hostiles . | . . . . . . . . . . Robots Corrupted 3 | . . . . . . . . 1 2 Combat Hostiles 3 | . . . . . . . . 1 2 Parts Fried 9 | . . . . . . . . 3 6 Impact Corruptions . | . . . . . . . . . . Robots Melted . | . . . . . . . . . . Combat Hostiles . | . . . . . . . . . . Parts Melted 3 | . . . . . 3 . . . . Heat Transferred 924 | . . . . . 224 650 . . 50 Parts Sabotaged . | . . . . . . . . . . Parts Stolen . | . . . . . . . . . . Parts Stripped . | . . . . . . . . . . Power Chain Reactions 3 | . . . . . 2 . . . 1 Alert | -11 -10 -10 -10 -8 -8 -6 -6 -6 -6 ------- Run | Yrd Mat Min Sub Rec Scr Fac Low Low Zio Maximum Alert Level 3 | . . . . . . 3 . . . Low Security (%) 88 | 100 100 100 . 100 . 59 . . . Level 1 2 | . . . . . . 8 . . . Level 2 1 | . . . . . . 4 . . . Level 3 7 | . . . . . . 27 . . . Level 4 . | . . . . . . . . . . Level 5 . | . . . . . . . . . . High Security . | . . . . . . . . . . Max Security . | . . . . . . . . . . Peak Influence 874 | 15 176 125 . 192 . 874 . . . Initial 64 | . . . . 64 . . . . . Average 117 | 3 32 72 . 48 . 289 . . . Influence Increases 2623 | 35 280 285 173 277 . 1078 205 290 . Destroy 0b10 Robot/C 1400 | . 140 220 140 160 . 340 180 220 . Destroy 0b10 Robot/NC 200 | 35 30 10 . 55 . 70 . . . Destroy Leader 210 | . 34 50 . . . 76 10 40 . Allied During Kill 3 | . . . 3 . . . . . . Successful Hack 94 | . 10 5 . 39 . 40 . . . Disable Machine 270 | . 30 . . . . 240 . . . Destroy Structure 266 | . 36 . . 23 . 207 . . . Lose Combat Pursuer 180 | . . . 30 . . 105 15 30 . Influence Decreases 2623 | 35 280 238 85 412 . 252 684 637 . Entered New Map 469 | . . . 25 71 . . 306 67 . Time Decay 1803 | 35 130 238 30 320 . 162 368 520 . Lost Part 181 | . . . 10 21 . 90 10 50 . Lost Ally 20 | . . . 20 . . . . . . Purge Threat 150 | . 150 . . . . . . . . Squads Dispatched 11 | . 3 1 . . . 7 . . . Investigation 4 | . 1 1 . . . 2 . . . Extermination 1 | . . . . . . 1 . . . Reinforcement 5 | . 2 . . . . 3 . . . Assault 1 | . . . . . . 1 . . . Garrison . | . . . . . . . . . . Intercept . | . . . . . . . . . . Searches Triggered . | . . . . . . . . . . Construction Impeded 2 | . . . . . . 2 . . . Haulers Reinforced . | . . . . . . . . . . Active Scanning Responses . | . . . . . . . . . . Cargo Convoy Interrupts . | . . . . . . . . . . Stealth | -11 -10 -10 -10 -8 -8 -6 -6 -6 -6 --------- Run | Yrd Mat Min Sub Rec Scr Fac Low Low Zio Distress Signals 2 | . . . . . . 2 . . . Communications Jammed . | . . . . . . . . . . Distress Signals . | . . . . . . . . . . Times Spotted 140 | . 13 11 15 8 6 27 7 9 44 Peak Tracking Total 23 | . 4 3 4 7 5 9 5 4 23 Tactical Retreats 13 | . . . 2 . . 4 1 2 4 Traps | -11 -10 -10 -10 -8 -8 -6 -6 -6 -6 ------- Run | Yrd Mat Min Sub Rec Scr Fac Low Low Zio Traps Triggered 5 | . 1 . 3 . . 1 . . . Indirectly . | . . . . . . . . . . Trap Hack Attempts . | . . . . . . . . . . Triggered . | . . . . . . . . . . Disarmed . | . . . . . . . . . . Reprogrammed . | . . . . . . . . . . Reused . | . . . . . . . . . . Traps Extracted . | . . . . . . . . . . Installed . | . . . . . . . . . . Triggered . | . . . . . . . . . . Machines | -11 -10 -10 -10 -8 -8 -6 -6 -6 -6 ---------- Run | Yrd Mat Min Sub Rec Scr Fac Low Low Zio Machines Disabled 28 | . 2 . 4 . . 16 1 1 4 Max in Single Turn 6 | . 1 . 2 . . 6 1 1 2 Machines Repaired . | . . . . . . . . . . Machines Dismantled . | . . . . . . . . . . Machines Sabotaged . | . . . . . . . . . . Overloaded Fab Kills . | . . . . . . . . . . Hacking | -11 -10 -10 -10 -8 -8 -6 -6 -6 -6 --------- Run | Yrd Mat Min Sub Rec Scr Fac Low Low Zio Machines Accessed 37 | . 4 1 2 15 8 4 1 2 . Terminals 13 | . 4 1 . 6 . 2 . . . Fabricators . | . . . . . . . . . . Repair Stations . | . . . . . . . . . . Recycling Units 9 | . . . . 7 . 2 . . . Scanalyzers . | . . . . . . . . . . Garrison Access . | . . . . . . . . . . Total Hacks 155 | . 11 3 13 59 55 9 1 4 . Successful 132 | . 5 1 13 48 55 5 1 4 . Failed 23 | . 6 2 . 11 . 4 . . . Catastrophic 6 | . 2 1 . 3 . . . . . Database Lockouts . | . . . . . . . . . . Manual 61 | . 11 4 1 34 . 9 . . 2 Terminals 35 | . 11 3 . 17 . 4 . . . Fabricators . | . . . . . . . . . . Repair Stations . | . . . . . . . . . . Recycling Units 23 | . . . . 18 . 5 . . . Scanalyzers . | . . . . . . . . . . Garrison Access . | . . . . . . . . . . Terminal Hacks 102 | . 1 . 13 28 55 . 1 4 . Record 90 | . . . 12 24 51 . . 3 . Robot Analysis 3 | . . . . . 3 . . . . Open Door 2 | . . . . . . . 1 1 . Branch Access Points 1 | . . . . 1 . . . . . Alert Level 1 | . . . . 1 . . . . . Unreport Threat 2 | . 1 . . 1 . . . . . Zone Layout 1 | . . . . 1 . . . . . Proto ID Catalog 2 | . . . 1 . 1 . . . . Fabricator Hacks . | . . . . . . . . . . Repair Station Hacks . | . . . . . . . . . . Recycling Unit Hacks 8 | . . . . 8 . . . . . Process 1 | . . . . 1 . . . . . Report Inventory 3 | . . . . 3 . . . . . Retrieve Matter 2 | . . . . 2 . . . . . Retrieve Components 2 | . . . . 2 . . . . . Scanalyzer . | . . . . . . . . . . Garrison Access Hacks . | . . . . . . . . . . Unauthorized Hacks 21 | . 4 1 . 11 . 5 . . . Terminals 13 | . 4 1 . 5 . 3 . . . Track 1 | . 1 . . . . . . . . Assimilate 3 | . 1 . . 1 . 1 . . . Botnet 7 | . 2 1 . 2 . 2 . . . Operators 2 | . . . . 2 . . . . . Fabricators . | . . . . . . . . . . Repair Stations . | . . . . . . . . . . Recycling Units 8 | . . . . 6 . 2 . . . Mask 6 | . . . . 6 . . . . . Fedlink 2 | . . . . . . 2 . . . Scanalyzers . | . . . . . . . . . . Garrison Access . | . . . . . . . . . . Data Cores Recovered . | . . . . . . . . . . Used . | . . . . . . . . . . Hacking Detections 19 | . 4 1 . 10 . 4 . . . Full Trace Events 3 | . 1 1 . 1 . . . . . Feedback Events . | . . . . . . . . . . Feedback Blocked . | . . . . . . . . . . Robot Schematics Acquired 2 | . . . . . . . . . 2 Robots Built . | . . . . . . . . . . Authchips . | . . . . . . . . . . Time . | . . . . . . . . . . Total Robot Build Rating . | . . . . . . . . . . Part Schematics Acquired 2 | . . . . . . . . . 2 Parts Built . | . . . . . . . . . . Authchips . | . . . . . . . . . . Time . | . . . . . . . . . . Total Part Build Rating . | . . . . . . . . . . Part Studies Acquired . | . . . . . . . . . . Parts Repaired . | . . . . . . . . . . Time . | . . . . . . . . . . Parts Recycled . | . . . . . . . . . . Recycled Matter 78 | . . . . 78 . . . . . Retrieved Matter 78 | . . . . 78 . . . . . Retrieved Components 6 | . . . . 6 . . . . . Parts Scanalyzed . | . . . . . . . . . . Part Schematics Acquired . | . . . . . . . . . . Parts Damaged . | . . . . . . . . . . Bothacking | -11 -10 -10 -10 -8 -8 -6 -6 -6 -6 ------------ Run | Yrd Mat Min Sub Rec Scr Fac Low Low Zio Used RIF Installer . | . . . . . . . . . . Robots Hacked . | . . . . . . . . . . Non-combat . | . . . . . . . . . . Combat . | . . . . . . . . . . Robot Hacks Applied . | . . . . . . . . . . Relay Couplers Released . | . . . . . . . . . . Fabnet Peak Effective % . | . . . . . . . . . . Robots Rewired . | . . . . . . . . . . Allies Hacked . | . . . . . . . . . . Hacks Repelled . | . . . . . . . . . . Allies | -11 -10 -10 -10 -8 -8 -6 -6 -6 -6 -------- Run | Yrd Mat Min Sub Rec Scr Fac Low Low Zio Total Allies 12 | . 1 2 . . . . . . 9 Largest Group 7 | . 1 2 2 . . . . . 7 Highest-Rated Group 185 | . 10 47 51 . . . . . 185 Highest-Rated Ally 96 | . 10 31 31 . . . . . 96 Total Orders . | . . . . . . . . . . Ally Attacks 33 | . . . 26 . . . . . 7 Total Damage 441 | . . . 308 . . . . . 133 Kills 4 | . . . 4 . . . . . . Allies Corrupted . | . . . . . . . . . . Allies Melted . | . . . . . . . . . . Intel | -11 -10 -10 -10 -8 -8 -6 -6 -6 -6 ------- Run | Yrd Mat Min Sub Rec Scr Fac Low Low Zio Active Infowar (turns) 7514 | 50 544 503 2208 . . 871 844 1539 955 Optics 155 | . . . 155 . . . . . . Sensors 4927 | . . 1 748 . . 843 841 1539 955 Terrain 1737 | 50 521 . 1166 . . . . . . Structural 1845 | . . . . . . 837 841 167 . Traps 2 | . . . . . . . 2 . . Seismic 1218 | 33 544 502 139 . . . . . . Robot Analysis Total 3 | . . . . . 3 . . . . Derelict Logs Recovered 6 | . . . 1 . 1 . 1 1 2 Drone Launches . | . . . . . . . . . . Drone Recoveries . | . . . . . . . . . . Exploration | -11 -10 -10 -10 -8 -8 -6 -6 -6 -6 ------------- Run | Yrd Mat Min Sub Rec Scr Fac Low Low Zio Turns Passed 13751 | 142 544 503 4077 1080 2371 931 844 1644 1615 Spaces Moved 8638 | 67 355 339 1753 689 1999 544 769 936 1187 Core 46 | 4 . . 15 8 . . . . 19 Treads . | . . . . . . . . . . Legs 377 | . . . . 273 . . . . 104 Wheels 7926 | 63 355 339 1738 408 1999 256 769 936 1063 Hover 289 | . . . . . . 288 . . 1 Flight . | . . . . . . . . . . Fastest Speed 48 | 50 80 80 80 95 90 48 100 100 50 Average Speed 106 | 78 80 80 123 141 95 88 100 105 106 Slowest Speed 700 | 80 80 80 700 700 105 185 100 115 350 Overloaded Moves . | . . . . . . . . . . Propulsion Burnouts . | . . . . . . . . . . Robots Hopped . | . . . . . . . . . . Potential Cave-ins . | . . . . . . . . . . Cave-ins Triggered . | . . . . . . . . . . Exploration Rate (%) 67 | 3 59 63 86 97 95 17 79 89 91 Regions Visited 9 Branch Regions 7 Pre-discovered Areas 8 | . . . 2 . 4 1 . . 1 Known Exits Taken 3 | . . . . . 1 1 1 . . Unknown Exits Taken 6 | 1 1 1 1 1 . . . 1 . Scrap Searched 22 | . . 1 7 . 2 . 3 7 2 Spaces Dug 31 | . 7 . . . . . 17 7 . Terrain Destroyed 721 | . 37 . 263 30 61 229 76 25 . Melee . | . . . . . . . . . . Projectile 7 | . . . . . . . . 7 . AOE 714 | . 37 . 263 30 61 229 76 18 . Terrain Rammed . | . . . . . . . . . . Walls Destroyed . | . . . . . . . . . . Machines Disabled . | . . . . . . . . . . Actions | -11 -10 -10 -10 -8 -8 -6 -6 -6 -6 --------- Run | Yrd Mat Min Sub Rec Scr Fac Low Low Zio Total 12839 | 104 599 471 3551 786 2468 968 832 1567 1493 Wait 3681 | . 215 67 1659 79 454 353 26 590 238 Move 8629 | 66 354 338 1752 688 1998 543 768 935 1187 Hop . | . . . . . . . . . . Pick Up 36 | 3 5 3 10 1 3 3 3 . 5 Fast Attach 73 | 8 . . 16 8 2 19 5 7 8 Attach 15 | . 2 . 6 . . 4 . 1 2 Detach 3 | . 1 . 2 . . . . . . Swap 32 | 1 4 6 10 1 1 1 1 5 2 Drop 65 | 2 4 6 20 5 5 7 7 3 6 Fire 295 | 24 14 51 69 4 4 38 22 26 43 Melee . | . . . . . . . . . . Ram 2 | . . . . . . . . . 2 Kick . | . . . . . . . . . . Crush . | . . . . . . . . . . Escape Stasis . | . . . . . . . . . . Rewire 1 | . . . . . 1 . . . . Trap . | . . . . . . . . . . Miscellaneous 7 | . . . 7 . . . . . . Route ------- -11/Scrapyard -10/Materials (discovered 4 exits: [*Mat x2] / *Min x2) -10/Mines -10/Subcaves (discovered 3 exits: [*Mat x2] / *Rec) -8/Recycling (discovered 2 exits: *Fac / *Scr) -8/Scraptown (discovered 2 exits: *Fac x2) -6/Factory (discovered 6 exits: Fac x3 / *Low x2 / Ext) -6/Lower Caves -6/Lower Caves (discovered 2 exits: *Fac / *Zio) -6/Zion (discovered 1 exit: *Pro) History --------- Turn | Location | Event 16 | -11/Scrapyard | Discovered new exit (range 15) 143 | -11/Scrapyard | Entered Materials 288 | -10/Materials | Discovered new exit (range 7) 301 | -10/Materials | Build established: Mutant 613 | -10/Materials | Discovered new exit (range 4) 623 | -10/Materials | Discovered new exit (range 14) 653 | -10/Materials | Discovered new exit (range 13) 687 | -10/Materials | Entered Mines 730 | -10/Mines | Discovered new exit (range 10) 960 | -10/Mines | Found a damaged Exp. Sensor Array with a note attached 963 | -10/Mines | Found Prototype Device 966 | -10/Mines | Identified Exp. Sensor Array 1190 | -10/Mines | Entered Subcaves 1190 | -10/Subcaves | Accompanied by 2 allies 1195 | -10/Subcaves | Led the pair of lost Derelicts to an unsafe place 1195 | -10/Subcaves | Learned Materials non-interactive machine intel 1244 | -10/Subcaves | Visited Clippyterm 1246 | -10/Subcaves | Learned Factory garrison access intel 1246 | -10/Subcaves | Learned location of Section 7 (-2) 1256 | -10/Subcaves | Discovered new exit (range 8) 1320 | -10/Subcaves | Core integrity fell below 50% 1366 | -10/Subcaves | Lost 6 parts (1p1n2u2w) 1452 | -10/Subcaves | Visited 4L-MR0's lab 1507 | -10/Subcaves | Found Meta Core 1508 | -10/Subcaves | Attached Meta Core, gained temporary slots: Propulsion, Utility, Weapon 2099 | -10/Subcaves | Shifting Twisted Machinery released Sub. Monowheel 2101 | -10/Subcaves | Shifting Twisted Machinery released Battle Rifle 2402 | -10/Subcaves | Build established: Subdweller-Tank 2423 | -10/Subcaves | Learned location of Zion (-6) 2423 | -10/Subcaves | Met a Zionite searching for "candidates" 2443 | -10/Subcaves | A swath of the cavern ceiling suddenly collapsed 2773 | -10/Subcaves | Build established: Skirmisher 3930 | -10/Subcaves | Build established: Subdweller-Bomber 4213 | -10/Subcaves | Shifting Twisted Machinery released Sub. Beam Cannon 4236 | -10/Subcaves | Shifting Twisted Machinery released Battle Rifle 4838 | -10/Subcaves | Discovered new exit (range 16) 5149 | -10/Subcaves | Discovered new exit (range 13) 5166 | -10/Subcaves | Core integrity fell below 20% 5267 | -10/Subcaves | Entered Recycling 5268 | -8/Recycling | Met a Zionite searching for Scraptown 5633 | -8/Recycling | Destroyed 9 combat bots 5643 | -8/Recycling | Lost 4 parts (1n1u2w) 5858 | -8/Recycling | Discovered new exit (range 5) 5921 | -8/Recycling | Build established: Mutant 6318 | -8/Recycling | Scanned before Scraplab entrance 6331 | -8/Recycling | Entered Scraplab 6343 | -8/Recycling | Discovered new exit (range 2) 6347 | -8/Recycling | Entered Scraptown 6347 | -8/Scraptown | System corruption cleaned by C-Scrubber 6598 | -8/Scraptown | Discovered new exit (range 5) 6667 | -8/Scraptown | Scanned Subdweller tech in exchange for log data 6670 | -8/Scraptown | Learned 8 Factory zone layouts 6693 | -8/Scraptown | Visited Red Mages 6736 | -8/Scraptown | Visited Cyclists 6763 | -8/Scraptown | Visited Spacefarers 6833 | -8/Scraptown | Visited Shadow of the Wyrm 6855 | -8/Scraptown | Visited UFD Registry 6855 | -8/Scraptown | Registered with UFD as "Thunderglider" 6889 | -8/Scraptown | Entered Cyclist Reading Room 6926 | -8/Scraptown | Visited Assassins FH 6956 | -8/Scraptown | Visited Awakened 7182 | -8/Scraptown | Visited Comm Corps 7327 | -8/Scraptown | Visited LU-1G1's Boring Crew 7393 | -8/Scraptown | Visited Scrapoid Research Area 7437 | -8/Scraptown | Visited Science Testing Area 7968 | -8/Scraptown | Visited Science Guys 8014 | -8/Scraptown | Visited Scrapoid Pod Storage 8034 | -8/Scraptown | Visited A0-MCA Data Center 8039 | -8/Scraptown | Given an A- rating by A0-MCA 8044 | -8/Scraptown | Found A0-MCA's Component Scanner 8069 | -8/Scraptown | Visited Botcube Research 8080 | -8/Scraptown | Found Botcube 8101 | -8/Scraptown | Visited Analyses Database 8125 | -8/Scraptown | Visited Derelict Rescue Squad 8327 | -8/Scraptown | Visited Cartography Club 8394 | -8/Scraptown | Learned location of Cetus (-6) 8394 | -8/Scraptown | Learned location of Armory (-3) 8394 | -8/Scraptown | Learned location of Quarantine (-3) 8394 | -8/Scraptown | Learned 8 Factory zone layouts 8394 | -8/Scraptown | Learned 12 Research zone layouts 8394 | -8/Scraptown | Learned 8 Access zone layouts 8394 | -8/Scraptown | Learned 4 Mines zone layouts 8394 | -8/Scraptown | Learned 4 Storage zone layouts 8394 | -8/Scraptown | Learned 8 Lower Caves zone layouts 8394 | -8/Scraptown | Learned 20 Upper Caves zone layouts 8394 | -8/Scraptown | Learned 16 Lower Caves zone layouts 8394 | -8/Scraptown | Learned 24 Proximity Caves zone layouts 8394 | -8/Scraptown | Learned location of 2 exits from Factory 8394 | -8/Scraptown | Learned location of 2 exits from Research 8394 | -8/Scraptown | Identified exit to Factory 8441 | -8/Scraptown | Found Deep Structural Scanner 8604 | -8/Scraptown | Met Optimus 8604 | -8/Scraptown | Accepted into 0bPrime 8688 | -8/Scraptown | Civil war broke out across Scraptown 8718 | -8/Scraptown | Entered Factory 8718 | -6/Factory | Evolved 8 slots: Power x2, Propulsion x3, Utility x3 8719 | -6/Factory | Identified exit to Factory 8719 | -6/Factory | Identified exit to Lower Caves 8721 | -6/Factory | Identified exit to Extension 8722 | -6/Factory | Loaded intel: 4 garrison access locations 8734 | -6/Factory | Lost 3 parts (1p1n1w) 8746 | -6/Factory | Lost 3 allies 9195 | -6/Factory | Loaded intel: 8 recycling unit locations 9232 | -6/Factory | Learned location of Protoforge (-2) 9336 | -6/Factory | Found Launcher Loader 9337 | -6/Factory | Lost 5 parts (1p2n1u1w) 9394 | -6/Factory | Destroyed 7 combat bots 9418 | -6/Factory | First assault squad dispatched 9446 | -6/Factory | Lost 3 parts (1p1n1w) 9649 | -6/Factory | Entered Lower Caves 9650 | -6/Lower Caves | Identified exit to Lower Caves 10196 | -6/Lower Caves | Attracted the attention of an 0b10 outpost 10493 | -6/Lower Caves | Entered another Lower Caves area 10524 | -6/Lower Caves | Learned Factory security intel 10569 | -6/Lower Caves | Encountered a Warlord checkpoint 10684 | -6/Lower Caves | Lost 4 parts (2p1n1w) 10949 | -6/Lower Caves | Entered an active Warlord outpost 11010 | -6/Lower Caves | Learned Armory trap positions 11063 | -6/Lower Caves | Discovered new exit (range 10) 11132 | -6/Lower Caves | Found Alien Artifact 11132 | -6/Lower Caves | Identified Core Expander 11132 | -6/Lower Caves | Installed Core Expander, added new Propulsion slot 11897 | -6/Lower Caves | Discovered exit to Factory (range 7) 12137 | -6/Lower Caves | Entered Zion 12138 | -6/Zion | Identified exit to Proximity Caves 12338 | -6/Zion | System corruption cleaned by Quarantine Array 12607 | -6/Zion | Found CR-A16's Pointy Stick 12673 | -6/Zion | Learned Factory trap positions 13091 | -6/Zion | Found Prototype Device 13092 | -6/Zion | Identified Phasing AFG 13171 | -6/Zion | Gained Derelict followers 13202 | -6/Zion | Given the Hacking Drone Bay 13202 | -6/Zion | Found Prototype Device 13203 | -6/Zion | Identified Hacking Drone Bay 13274 | -6/Zion | Given A8's code to call for help 13426 | -6/Zion | Turned away by Imprinter 13452 | -6/Zion | Attempted to imprint without authorization 13452 | -6/Zion | Attacked by Zionites 13510 | -6/Zion | Core integrity fell below 50% 13547 | -6/Zion | Lost 7 parts (2n2u3w) 13583 | -6/Zion | System corruption reached 10% 13596 | -6/Zion | System corruption reached 30% 13722 | -6/Zion | Core integrity fell below 20% 13742 | -6/Zion | Enhanced Grunt warped into view, answering call for help 13750 | -6/Zion | Enhanced Grunt warped into view, answering call for help 13752 | -6/Zion | Destroyed by LY-ED1(z) with Makeshift Axe Last Messages --------------- Connecting with Deep Containment System... Current location identified: Zion Transmitting encrypted signal... >>\\F47F Transmitting encrypted signal... [Achievement: Help From High Places] Enhanced Grunt suffers critical hit (Smash). Enhanced Grunt system corrupted by crushing effect. Enhanced Grunt knocked back. PV-86Z(z) bursts out of the Twisted Machinery. Enhanced Grunt suffers critical hit (Burn). Carbon-fiber Leg severed. PV-86Z(z) pulls a Mak. Laser out of the Twisted Machinery. Dropped Gravmag System. Deep Containment System disabled. Enhanced Grunt warps into view. Acquired Gravmag System. DR-H3P(z) bursts out of the Twisted Machinery. Map ----- +----------------------------------------------------+ | ??????????????????????????????????????????????? | | ??????????????????????????????????????????????? | | ??????????????????????????????????????????????? | | ??????????????????????????????????????????????? | | ??????????????????????????????????????????????? | | ??????????????????????????????????????????????? | | ????????????????????????????????????#######???? | | ????????????????????????????????????#!"!"[#???? | | ????????????????????????????????????#[ ! /#???? | | ????????????????????????????????????#]" "]#???? | | ?????????????????????????????????###?"" ""?#### | | ??????????????????????????????####"### ###""# | | ?????????????????????????????##"""""## # """" | | ?????????????????????????????#"" ""# """ | | ????????????????????????????##" """ " " | | ????????????????????????????#"" """"" | | ????????????????????????????##" """"" | | ??????????????????????#?????##"" | | ??????????????????????"####?#"""" | | ??????????????????????#"""#?#"""" | | ??????????????????????#"z #?####"" """ | | ??????????????????????"ggz###"##""""" """ | | ??????????????????????#zzzz"""#"#""""" """" | | ?????????????????????## g " """"""""""" """" | | ?????????????????????" zzM " """" | | ?????????????????????"@z zz z """" | | ?????????????????????# =z" z""" """ """" | | ??????????????????"""" "z"""z"" """ | | ?????????????????"""""""""###z" | | ?????????????????######"###?##" " | | ??????????????????????###??###" """" " | | ??????????????????????????##"" " " """""" "" | | ??????????????????????????#"" " """"#" "" | | ??????????????????????????##"" """#""" "" | | ????????????????????????#"##" "##""""" | | ????????????????????????#"""" ""##"##" | | ????????????????????????###" = ""####""" | | ?????????????????????????#"" "" """"#"""" | | ????????????????????????#"#"""" "" """""" "" | | ??????????????????????????##""" %"" """"" | | ????????????????????########"" " | | ????????????????????# [ # """" " | | ???????????????????#"" "" """"" "" | | ???????????????????# ###""" "" "" | | ???????????????????#" #""""" """" "" | | ???????????????????##"""" #"""""%= """" "" | | ????????????????????##""# ##" *% """" | | ?????????????????????###### " [ """ | | ??????????????????????????## *%= """ | | ???????????????????????????# "" """ | +----------------------------------------------------+ Best States ------------- Heat Dissipation 37 Energy Generation 40 Energy Capacity 430 Matter Stores 300 Matter Capacity 300 Sight Range 21 Robot Scan Range 20 Terrain Scan Range 16 Terrain Scan Density 10 Armor Coverage 800 Resistance: EM 25 Evasion (%) 55 Launcher Accuracy 20 Salvage Targeting 4 Offensive Hacking 10 Item Schematics ----------------- Angular Momentum Engine | -6/Zion | Archive Imp. Kinecellerator | -6/Zion | Archive Robot Schematics ------------------ G-50 Soldier | -6/Zion | Archive M-22 Extractor | -6/Zion | Archive Fabricated ------------ Nothing Repaired ---------- Nothing Studied --------- None Alien Tech Used ----------------- Core Expander Achievements -------------- A Problem For Future Me Ew, Corruption Help From High Places Mistaken Identity Myspace Resistances Are Futile Survival Of The Most Covered Uncivil War Wiki Contributor You May Approach The Wall Challenges ------------ None Game ------ Seed SwordDisruptorPod Manual? 0 Play Time 03:23:58 Cumulative 78.9 hours Start 2025.12.02 @ 12:50:39 End 2025.12.02 @ 19:28:17 Sessions 1 Manual Loads 0 Difficulty Rogue Special Mode None Game No. 59 Rogue 59 Adventurer 0 Explorer 0 Win Type - Total 0 Types 0/0/0/0/0/0/0/0/0/0 Lore% 45 Gallery% 40 Achievement% 26 Wizard Run 0 Options --------- Layout 1 ASCII 0 Keyboard 0 Movement Mouse Keybinds 0 Fullscreen 1 Font 32/SmallcapsGlow Map View 50x40 Zoom Use 0% Tactical HUD 0 Map Filters NONE Filters NONE Steam 1 RUN: bc459223-b0fa-437a-80bd-9641a32efdf7